{"text_format":"1","workbook":"xlsx","n_sheets":3,"sheets":["Cover","Tabelle1","Test"],"not_rendered":{"charts":0,"images":0,"macros":1,"external_links":1,"defined_names":2,"comments":0,"pivot_tables":0},"unopened":[],"bounds":{"document_bytes":16777216,"sheet_cells":100000,"rows_first":2000,"rows_last":500,"rows_between":2000,"halvings":0,"cell_chars":16384,"cell_head_chars":4096},"cells_cut":0,"cells_raw":0,"read":"whole","date_system":"1900"}

{"sheet":"Cover","index":0,"n_rows":23,"n_cols":3,"rows_kept":23,"cut":false,"hidden":false,"merged":[]}
[]
[]
[null,"Excel + VBA"]
[null,"für Controller"]
[]
[]
[null,"Kapitel",1]
[null,"Thema","Einführung in VBA"]
[]
[null,"Inhalt","Datentyp-Konvertierungen"]
[]
[null,null," "]
[]
[]
[]
[]
[]
[null,"Version","2.0"]
[null,"Autor","Harald Nahrstedt"]
[null,"Letzte Bearbeitung","2023-07-15"]
[]
[]
[null,"Springer Vieweg Verlag"]

{"sheet":"Tabelle1","index":1,"n_rows":0,"n_cols":0,"rows_kept":0,"cut":false,"hidden":false,"merged":[]}

{"sheet":"Test","index":2,"n_rows":11,"n_cols":4,"rows_kept":11,"cut":false,"hidden":false,"merged":[]}
["Inhalt","Funktion Typ","CellType","Bemerkung"]
[{"$f":"\"Dies ist ein Test\"","v":"Dies ist ein Test"},{"$f":"TYPE(A2)","v":2},{"$f":"celltype(A2)","v":"Text"},"mehrere Wörter"]
[{"$f":"\"Buchtitel\"","v":"Buchtitel"},2,{"$f":"celltype(A3)","v":"Text"},"ein Wort"]
["222",2,{"$f":"celltype(A4)","v":"Text"},"mit Hochkomma eingegebene Zahl"]
[{"$f":"99","v":99},1,{"$f":"celltype(A5)","v":"Value"},"Ganzzahl"]
[{"$f":"22.3","v":22.3},1,{"$f":"celltype(A6)","v":"Value"},"Dezimalzahl"]
["2023-07-23",1,{"$f":"celltype(A7)","v":"Date"},"Datum"]
["13:23:00",1,{"$f":"celltype(A8)","v":"Time"},"Zeit"]
[null,1,{"$f":"celltype(A9)","v":"Blank"},"kein Inhalt"]
[{"$f":"1=1","v":true},4,{"$f":"celltype(A10)","v":"Logical"},"Logischer Ausdruck"]
[{"$f":"1/0","v":{"$error":"#DIV/0!"}},16,{"$f":"celltype(A11)","v":"Error"},"Division durch Null"]